[Event "Chpt Reg Jeunes Occitanie 2026 - Espalion"]
[Site "Espalion, France"]
[Round "1.6"]
[ECO "?"]
[Annotator "?"]
[TimeControl "1h30 + 30sec/cp"]

1. c4 {[%clk 1:30:55][%emt 0:00:01]} 1... c5 {[%clk 1:30:35][%emt 0:00:25]} 2.
Nc3 {[%clk 1:31:19][%emt 0:00:06]} 2... Nc6 {[%clk 1:30:54][%emt 0:00:11]} 3.
e4 {[%clk 1:31:44][%emt 0:00:04]} 3... g6 {[%clk 1:30:35][%emt 0:00:50]} 4. g3
{[%clk 1:32:08][%emt 0:00:06]} 4... Bg7 {[%clk 1:30:26][%emt 0:00:39]} 5. Bg2
{[%clk 1:32:36][%emt 0:00:01]} 5... e6 {[%clk 1:29:47][%emt 0:01:10]} 6. Nge2
{[%clk 1:32:59][%emt 0:00:06]} 6... Nge7 {[%clk 1:29:35][%emt 0:00:43]} 7. d3
{[%clk 1:32:56][%emt 0:00:33]} 7... O-O {[%clk 1:29:18][%emt 0:00:47]} 8. h3
{[%clk 1:33:11][%emt 0:00:14]} 8... a6 {[%clk 1:28:15][%emt 0:01:34]} 9. O-O
{[%clk 1:33:30][%emt 0:00:11]} 9... b5 {[%clk 1:18:37][%emt 0:10:09]} 10. cxb5
{[%clk 1:32:22][%emt 0:01:37]} 10... axb5 {[%clk 1:17:58][%emt 0:01:09]} 11.
Nxb5 {[%clk 1:32:28][%emt 0:00:24]} 11... Ba6 {[%clk 1:18:11][%emt 0:00:17]}
12. Na3 {[%clk 1:30:18][%emt 0:02:39]} 12... d5 {[%clk 1:10:36][%emt 0:08:06]}
13. Nc2 {[%clk 1:26:15][%emt 0:04:32]} 13... Qb6 {[%clk 1:03:08][%emt 0:07:59]}
 14. Nf4 {[%clk 1:23:57][%emt 0:02:47]} 14... Rfd8 {[%clk 0:58:15][%emt
0:05:24]} 15. Re1 {[%clk 1:14:22][%emt 0:10:04]} 15... dxe4 {[%clk
0:49:29][%emt 0:09:16]} 16. Bxe4 {[%clk 1:14:16][%emt 0:00:36]} 16... c4
{[%clk 0:46:26][%emt 0:03:33]} 17. Qf3 {[%clk 1:09:07][%emt 0:05:39]} 17...
cxd3 {[%clk 0:39:33][%emt 0:07:24]} 18. Nxd3 {[%clk 0:59:25][%emt 0:10:11]}
18... Bxd3 {[%clk 0:39:23][%emt 0:00:41]} 19. Bxd3 {[%clk 0:59:36][%emt
0:00:18]} 19... Ne5 {[%clk 0:39:25][%emt 0:00:28]} 20. Rxe5 {[%clk
0:57:09][%emt 0:02:57]} 20... Bxe5 {[%clk 0:39:16][%emt 0:00:39]} 21. Qe2
{[%clk 0:56:56][%emt 0:00:43]} 21... Bg7 {[%clk 0:39:10][%emt 0:00:36]} 22.
Rb1 {[%clk 0:55:35][%emt 0:01:50]} 22... Nd5 {[%clk 0:38:25][%emt 0:01:15]}
23. a3 {[%clk 0:55:05][%emt 0:01:00]} 23... Nc3 {[%clk 0:37:53][%emt 0:01:03]}
24. bxc3 {[%clk 0:52:14][%emt 0:03:21]} 24... Qxb1 {[%clk 0:38:03][%emt
0:00:20]} 25. Qf1 {[%clk 0:52:37][%emt 0:00:07]} 25... Rxd3 {[%clk
0:37:36][%emt 0:00:57]} 26. Qxd3 {[%clk 0:52:56][%emt 0:00:11]} 26... Qxc1+
{[%clk 0:37:59][%emt 0:00:07]} 27. Kg2 {[%clk 0:53:02][%emt 0:00:23]} 27...
Qg5 {[%clk 0:38:05][%emt 0:00:24]} 28. Ne3 {[%clk 0:53:12][%emt 0:00:20]}
28... Qa5 {[%clk 0:37:52][%emt 0:00:41]} 29. c4 {[%clk 0:53:16][%emt 0:00:29]}
29... Qxa3 {[%clk 0:37:54][%emt 0:00:28]} 30. Qd7 {[%clk 0:53:17][%emt
0:00:28]} 30... Qa7 {[%clk 0:37:54][%emt 0:00:31]} 31. Qd6 {[%clk
0:53:10][%emt 0:00:37]} 31... Bd4 {[%clk 0:37:23][%emt 0:01:00]} 32. Ng4
{[%clk 0:53:26][%emt 0:00:15]} 32... h5 {[%clk 0:36:35][%emt 0:01:18]} 33. c5
{[%clk 0:52:30][%emt 0:01:26]} 33... Qxc5 {[%clk 0:36:00][%emt 0:01:04]} 34.
Nf6+ {[%clk 0:52:28][%emt 0:00:32]} 34... Kg7 {[%clk 0:35:39][%emt 0:00:52]}
35. Nxh5+ {[%clk 0:52:54][%emt 0:00:04]} 35... gxh5 {[%clk 0:35:42][%emt
0:00:27]} 36. Qf4 {[%clk 0:53:19][%emt 0:00:05]} 36... Qd5+ {[%clk
0:35:35][%emt 0:00:37]} 37. Kh2 {[%clk 0:53:43][%emt 0:00:06]} 37... Ra1
{[%clk 0:35:29][%emt 0:00:36]} 0-1

[White "BURET-BOCHAROV, Karel"]
[Black "MORALES, Maxime"]
[WhiteElo "1599"]
[BlackElo "1932"]
[Result "0-1"]
[Date "2026.03.04"]

[Event "Chpt Reg Jeunes Occitanie 2026 - Espalion"]
[Site "Espalion, France"]
[Round "1.7"]
[ECO "?"]
[Annotator "?"]
[TimeControl "1h30 + 30sec/cp"]

1. d4 {[%clk 1:30:57][%emt 0:00:04]} 1... Nf6 {[%clk 1:30:53][%emt 0:00:05]}
2. c4 {[%clk 1:31:14][%emt 0:00:13]} 2... e6 {[%clk 1:31:17][%emt 0:00:06]} 3.
Nc3 {[%clk 1:31:31][%emt 0:00:13]} 3... d5 {[%clk 1:31:41][%emt 0:00:06]} 4.
Bg5 {[%clk 1:31:35][%emt 0:00:26]} 4... dxc4 {[%clk 1:31:48][%emt 0:00:24]} 5.
e4 {[%clk 1:28:44][%emt 0:03:20]} 5... b5 {[%clk 1:30:40][%emt 0:01:39]} 6. e5
{[%clk 1:14:58][%emt 0:14:16]} 6... h6 {[%clk 1:29:02][%emt 0:02:07]} 7. Bxf6
{[%clk 1:08:56][%emt 0:06:32]} 7... gxf6 {[%clk 1:29:04][%emt 0:00:28]} 8. Qf3
{[%clk 0:54:35][%emt 0:14:50]} 8... c6 {[%clk 1:10:29][%emt 0:19:07]} 9. Nge2
{[%clk 0:45:22][%emt 0:09:42]} 9... fxe5 {[%clk 1:03:06][%emt 0:07:53]} 10.
Nxb5 {[%clk 0:36:48][%emt 0:09:05]} 10... Bb4+ {[%clk 0:59:39][%emt 0:03:56]}
11. Nec3 {[%clk 0:17:00][%emt 0:20:18]} 11... exd4 {[%clk 0:53:10][%emt
0:06:59]} 12. O-O-O {[%clk 0:16:32][%emt 0:00:58]} 12... Bxc3 {[%clk
0:50:47][%emt 0:02:54]} 13. bxc3 {[%clk 0:15:19][%emt 0:01:42]} 13... Qg5+
{[%clk 0:50:55][%emt 0:00:22]} 14. Rd2 {[%clk 0:11:13][%emt 0:04:37]} 14...
Qxb5 {[%clk 0:49:42][%emt 0:01:42]} 15. Rxd4 {[%clk 0:11:17][%emt 0:00:27]}
15... Nd7 {[%clk 0:42:24][%emt 0:07:47]} 16. Bxc4 {[%clk 0:10:53][%emt
0:00:53]} 16... Qg5+ {[%clk 0:42:31][%emt 0:00:24]} 17. Kb2 {[%clk
0:02:26][%emt 0:08:57]} 17... Ne5 {[%clk 0:36:49][%emt 0:06:12]} 18. Qe4
{[%clk 0:01:32][%emt 0:01:24]} 18... Nxc4+ {[%clk 0:37:00][%emt 0:00:18]} 19.
Rxc4 {[%clk 0:01:53][%emt 0:00:09]} 19... Rb8+ {[%clk 0:36:54][%emt 0:00:37]}
20. Ka1 {[%clk 0:01:30][%emt 0:00:53]} 20... Qd2 {[%clk 0:23:59][%emt 0:13:23]}
 21. Rb1 {[%clk 0:01:17][%emt 0:00:44]} 21... Rxb1+ {[%clk 0:23:41][%emt
0:00:49]} 22. Kxb1 {[%clk 0:01:40][%emt 0:00:07]} 22... Qd5 {[%clk
0:21:18][%emt 0:02:54]} 23. Qh4 {[%clk 0:01:15][%emt 0:00:53]} 23... Qf5+
{[%clk 0:14:52][%emt 0:06:56]} 24. Kb2 {[%clk 0:01:21][%emt 0:00:23]} 24...
Bd7 {[%clk 0:13:26][%emt 0:01:58]} 25. Rb4 {[%clk 0:01:26][%emt 0:00:25]}
25... Qe5 {[%clk 0:07:23][%emt 0:06:32]} 26. f4 {[%clk 0:01:12][%emt 0:00:45]}
26... Qc7 {[%clk 0:05:16][%emt 0:02:37]} 27. Qf6 {[%clk 0:01:17][%emt 0:00:25]}
 27... Rg8 {[%clk 0:04:02][%emt 0:01:44]} 28. Qxh6 {[%clk 0:01:26][%emt
0:00:21]} 28... c5 {[%clk 0:03:48][%emt 0:00:44]} 29. Re4 {[%clk 0:00:55][%emt
0:01:01]} 29... Qb7+ {[%clk 0:04:08][%emt 0:00:10]} 30. Rb4 {[%clk
0:00:44][%emt 0:00:40]} 30... cxb4 {[%clk 0:04:26][%emt 0:00:14]} 31. Qh7
{[%clk 0:00:48][%emt 0:00:26]} 31... Rxg2+ {[%clk 0:03:54][%emt 0:01:02]} 32.
Kb3 {[%clk 0:00:59][%emt 0:00:17]} 32... bxc3+ {[%clk 0:04:16][%emt 0:00:09]}
33. Kxc3 {[%clk 0:01:27][%emt 0:00:02]} 33... Qb2+ {[%clk 0:04:23][%emt
0:00:23]} 34. Kc4 {[%clk 0:01:54][%emt 0:00:03]} 34... Qc2+ {[%clk
0:04:46][%emt 0:00:08]} 0-1

[White "DUCOS, Antonios"]
[Black "CANO, Ethan"]
[WhiteElo "1890"]
[BlackElo "1598"]
[Result "1-0"]
[Date "2026.03.04"]

[Event "Chpt Reg Jeunes Occitanie 2026 - Espalion"]
[Site "Espalion, France"]
[Round "1.8"]
[ECO "?"]
[Annotator "?"]
[TimeControl "1h30 + 30sec/cp"]

1. d4 {[%clk 1:30:58][%emt 0:00:03]} 1... b6 {[%clk 1:30:51][%emt 0:00:09]} 2.
Bf4 {[%clk 1:31:07][%emt 0:00:21]} 2... Bb7 {[%clk 1:31:11][%emt 0:00:10]} 3.
e3 {[%clk 1:30:17][%emt 0:01:20]} 3... e6 {[%clk 1:31:18][%emt 0:00:24]} 4.
Nf3 {[%clk 1:29:07][%emt 0:01:39]} 4... Nf6 {[%clk 1:30:44][%emt 0:01:05]} 5.
Nc3 {[%clk 1:26:06][%emt 0:03:31]} 5... d5 {[%clk 1:30:50][%emt 0:00:23]} 6.
Bd3 {[%clk 1:23:15][%emt 0:03:20]} 6... Nbd7 {[%clk 1:30:08][%emt 0:01:13]} 7.
Nb5 {[%clk 1:19:13][%emt 0:04:32]} 7... Rc8 {[%clk 1:26:32][%emt 0:04:06]} 8.
Nxa7 {[%clk 1:18:53][%emt 0:00:50]} 8... Ra8 {[%clk 1:26:55][%emt 0:00:07]} 9.
Nb5 {[%clk 1:19:12][%emt 0:00:12]} 9... Rc8 {[%clk 1:27:13][%emt 0:00:11]} 10.
O-O {[%clk 1:17:31][%emt 0:02:10]} 10... c6 {[%clk 1:26:09][%emt 0:01:35]} 11.
Nd6+ {[%clk 1:16:51][%emt 0:01:10]} 11... Bxd6 {[%clk 1:26:32][%emt 0:00:07]}
12. Bxd6 {[%clk 1:17:11][%emt 0:00:10]} 12... Ne4 {[%clk 1:25:57][%emt
0:01:05]} 13. Bf4 {[%clk 1:13:35][%emt 0:04:05]} 13... Ndf6 {[%clk
1:25:58][%emt 0:00:30]} 14. Ne5 {[%clk 1:12:14][%emt 0:01:51]} 14... O-O
{[%clk 1:25:26][%emt 0:01:02]} 15. f3 {[%clk 1:09:32][%emt 0:03:11]} 15... Nd6
{[%clk 1:25:05][%emt 0:00:53]} 16. Bg5 {[%clk 1:06:31][%emt 0:03:30]} 16... h6
{[%clk 1:25:16][%emt 0:00:19]} 17. Bxf6 {[%clk 1:04:18][%emt 0:02:43]} 17...
Qxf6 {[%clk 1:25:15][%emt 0:00:31]} 18. Nd7 {[%clk 1:02:54][%emt 0:01:53]}
18... Qe7 {[%clk 1:25:11][%emt 0:00:35]} 19. Nxf8 {[%clk 1:02:49][%emt
0:00:36]} 19... Qxf8 {[%clk 1:25:33][%emt 0:00:08]} 20. f4 {[%clk
1:01:49][%emt 0:01:29]} 20... c5 {[%clk 1:25:56][%emt 0:00:07]} 21. c3 {[%clk
1:01:53][%emt 0:00:25]} 21... Qe8 {[%clk 1:25:09][%emt 0:01:18]} 22. Qg4
{[%clk 0:58:25][%emt 0:03:57]} 22... Qc6 {[%clk 1:25:30][%emt 0:00:10]} 23.
Rf3 {[%clk 0:52:55][%emt 0:05:59]} 23... f5 {[%clk 1:24:41][%emt 0:01:19]} 24.
Qg6 {[%clk 0:51:52][%emt 0:01:33]} 24... Ne4 {[%clk 1:23:36][%emt 0:01:36]}
25. Bxe4 {[%clk 0:51:32][%emt 0:00:50]} 25... dxe4 {[%clk 1:23:44][%emt
0:00:22]} 26. Rg3 {[%clk 0:49:45][%emt 0:02:17]} 26... Rc7 {[%clk
1:23:04][%emt 0:01:09]} 27. Rd1 {[%clk 0:47:50][%emt 0:02:25]} 27... Qd6
{[%clk 1:19:41][%emt 0:03:54]} 28. Qxh6 {[%clk 0:45:13][%emt 0:03:07]} 28...
Bd5 {[%clk 1:18:25][%emt 0:01:47]} 29. Qg6 {[%clk 0:44:27][%emt 0:01:14]}
29... Qe7 {[%clk 1:17:26][%emt 0:01:30]} 30. a3 {[%clk 0:39:04][%emt 0:05:53]}
30... Rc6 {[%clk 1:17:41][%emt 0:00:15]} 31. h4 {[%clk 0:36:39][%emt 0:02:55]}
31... Qf8 {[%clk 1:12:22][%emt 0:05:50]} 32. Qg5 {[%clk 0:35:37][%emt 0:01:31]}
 32... Bb3 {[%clk 1:07:03][%emt 0:05:49]} 33. Rd2 {[%clk 0:35:29][%emt
0:00:37]} 33... Rd6 {[%clk 1:05:46][%emt 0:01:48]} 34. h5 {[%clk 0:34:35][%emt
0:01:24]} 34... Kh8 {[%clk 1:02:57][%emt 0:03:18]} 35. Rh3 {[%clk
0:34:02][%emt 0:01:04]} 35... Qf6 {[%clk 1:00:56][%emt 0:02:31]} 36. Qxf6
{[%clk 0:33:35][%emt 0:00:57]} 36... gxf6 {[%clk 1:01:18][%emt 0:00:08]} 37.
Kf2 {[%clk 0:32:22][%emt 0:01:42]} 37... e5 {[%clk 1:01:12][%emt 0:00:36]} 38.
Ke1 {[%clk 0:32:05][%emt 0:00:47]} 38... cxd4 {[%clk 1:00:16][%emt 0:01:26]}
39. cxd4 {[%clk 0:31:07][%emt 0:01:28]} 39... Rc6 {[%clk 1:00:15][%emt
0:00:31]} 40. dxe5 {[%clk 0:28:51][%emt 0:02:46]} 40... fxe5 {[%clk
0:59:51][%emt 0:00:54]} 41. fxe5 {[%clk 0:28:26][%emt 0:00:55]} 41... Rc1+
{[%clk 0:58:25][%emt 0:01:56]} 42. Kf2 {[%clk 0:28:31][%emt 0:00:25]} 42...
Bc4 {[%clk 0:58:28][%emt 0:00:27]} 43. g3 {[%clk 0:25:06][%emt 0:03:54]} 43...
Rf1+ {[%clk 0:58:25][%emt 0:00:34]} 44. Kg2 {[%clk 0:25:21][%emt 0:00:15]}
44... Rf3 {[%clk 0:58:16][%emt 0:00:39]} 45. Rf2 {[%clk 0:15:56][%emt 0:09:55]}
 45... Rxe3 {[%clk 0:58:09][%emt 0:00:37]} 46. g4 {[%clk 0:12:27][%emt
0:03:59]} 46... Re1 {[%clk 0:57:46][%emt 0:00:53]} 47. Rh1 {[%clk
0:12:09][%emt 0:00:48]} 47... Rxh1 {[%clk 0:56:55][%emt 0:01:20]} 48. Kxh1
{[%clk 0:12:37][%emt 0:00:03]} 48... e3 {[%clk 0:57:18][%emt 0:00:07]} 49. Rc2
{[%clk 0:10:24][%emt 0:02:42]} 49... Bd5+ {[%clk 0:54:59][%emt 0:02:50]} 50.
Kh2 {[%clk 0:08:59][%emt 0:01:54]} 50... f4 {[%clk 0:54:50][%emt 0:00:39]} 51.
b4 {[%clk 0:06:39][%emt 0:02:50]} 51... Bf3 {[%clk 0:52:22][%emt 0:02:59]} 52.
e6 {[%clk 0:05:46][%emt 0:01:23]} 52... e2 {[%clk 0:51:54][%emt 0:00:58]} 53.
Rc1 {[%clk 0:05:02][%emt 0:01:14]} 53... Bxg4 {[%clk 0:52:08][%emt 0:00:15]}
54. e7 {[%clk 0:05:27][%emt 0:00:06]} 54... Bd7 {[%emt 0:02:17]} 55. Rc8+
{[%emt 0:00:03]} 1-0

[White "PIERRECLOS, Tristan"]
[Black "LAVAL, Nolan"]
[WhiteElo "1591"]
[BlackElo "1876"]
[Result "0-1"]
[Date "2026.03.04"]

[Event "Chpt Reg Jeunes Occitanie 2026 - Espalion"]
[Site "Espalion, France"]
[Round "1.9"]
[ECO "?"]
[Annotator "?"]
[TimeControl "1h30 + 30sec/cp"]

1. e4 {[%clk 1:30:57][%emt 0:00:02]} 1... c5 {[%clk 1:30:58][%emt 0:00:01]} 2.
Nc3 {[%clk 1:31:20][%emt 0:00:06]} 2... e6 {[%clk 1:31:25][%emt 0:00:04]} 3.
f4 {[%clk 1:31:40][%emt 0:00:10]} 3... Nc6 {[%clk 1:31:51][%emt 0:00:04]} 4.
Bb5 {[%clk 1:32:07][%emt 0:00:03]} 4... Nge7 {[%clk 1:31:45][%emt 0:00:36]} 5.
Bxc6 {[%clk 1:32:34][%emt 0:00:02]} 5... Nxc6 {[%clk 1:32:04][%emt 0:00:11]}
6. Nf3 {[%clk 1:32:49][%emt 0:00:15]} 6... Be7 {[%clk 1:31:31][%emt 0:01:03]}
7. d3 {[%clk 1:32:17][%emt 0:01:03]} 7... O-O {[%clk 1:31:10][%emt 0:00:50]}
8. b3 {[%clk 1:31:19][%emt 0:01:28]} 8... d5 {[%clk 1:28:59][%emt 0:02:41]} 9.
Bb2 {[%clk 1:26:18][%emt 0:05:31]} 9... Re8 {[%clk 1:23:38][%emt 0:05:51]} 10.
Qd2 {[%clk 1:25:05][%emt 0:01:43]} 10... a6 {[%clk 1:17:13][%emt 0:06:56]} 11.
O-O {[%clk 1:02:01][%emt 0:23:34]} 11... b5 {[%clk 1:10:02][%emt 0:07:41]} 12.
e5 {[%clk 0:57:37][%emt 0:04:51]} 12... Bb7 {[%clk 1:06:30][%emt 0:04:05]} 13.
Ne2 {[%clk 0:55:42][%emt 0:02:25]} 13... Qc7 {[%clk 1:05:10][%emt 0:01:50]}
14. c3 {[%clk 0:55:06][%emt 0:01:07]} 14... Rac8 {[%clk 1:03:24][%emt 0:02:14]}
 15. Rac1 {[%clk 0:51:18][%emt 0:04:18]} 15... Qa5 {[%clk 1:01:48][%emt
0:02:06]} 16. a3 {[%clk 0:49:37][%emt 0:02:12]} 16... Red8 {[%clk
0:58:41][%emt 0:03:36]} 17. b4 {[%clk 0:47:35][%emt 0:02:33]} 17... Qb6 {[%clk
0:57:36][%emt 0:01:33]} 18. d4 {[%clk 0:46:07][%emt 0:02:00]} 18... cxb4
{[%clk 0:57:22][%emt 0:00:44]} 19. cxb4 {[%clk 0:46:04][%emt 0:00:33]} 19...
a5 {[%clk 0:57:14][%emt 0:00:38]} 20. bxa5 {[%clk 0:43:45][%emt 0:02:49]}
20... Nxa5 {[%clk 0:57:21][%emt 0:00:22]} 21. Qd3 {[%clk 0:31:37][%emt
0:12:33]} 21... Nc4 {[%clk 0:56:33][%emt 0:01:24]} 22. Qb3 {[%clk
0:31:15][%emt 0:00:49]} 22... Ra8 {[%clk 0:55:32][%emt 0:01:33]} 23. Ra1
{[%clk 0:30:37][%emt 0:01:09]} 23... Ba6 {[%clk 0:50:21][%emt 0:05:40]} 24.
Rfd1 {[%clk 0:23:10][%emt 0:07:57]} 24... Rdb8 {[%clk 0:47:14][%emt 0:03:38]}
25. Nd2 {[%clk 0:20:22][%emt 0:03:16]} 25... Nxb2 {[%clk 0:40:18][%emt
0:07:27]} 26. Qxb2 {[%clk 0:19:43][%emt 0:01:09]} 26... b4 {[%clk
0:40:32][%emt 0:00:16]} 27. Nb1 {[%clk 0:16:22][%emt 0:03:51]} 27... Bc4
{[%clk 0:31:34][%emt 0:09:27]} 28. Kf2 {[%clk 0:04:42][%emt 0:12:10]} 28...
Qa6 {[%clk 0:28:00][%emt 0:04:04]} 29. Rd2 {[%clk 0:02:21][%emt 0:02:52]}
29... bxa3 {[%clk 0:27:12][%emt 0:01:19]} 30. Qc2 {[%clk 0:02:28][%emt
0:00:22]} 30... Qc6 {[%clk 0:23:50][%emt 0:03:50]} 31. Ra2 {[%clk
0:02:07][%emt 0:00:53]} 31... Ra6 {[%clk 0:22:25][%emt 0:01:54]} 32. Ra1
{[%clk 0:01:51][%emt 0:00:48]} 32... Rb2 {[%clk 0:09:18][%emt 0:13:34]} 33.
Qc1 {[%clk 0:01:10][%emt 0:01:13]} 33... Qb6 {[%clk 0:08:44][%emt 0:01:05]}
34. Nbc3 {[%clk 0:00:47][%emt 0:00:52]} 34... Qb3 {[%clk 0:06:57][%emt
0:02:15]} 35. Ra2 {[%clk 0:00:35][%emt 0:00:44]} 35... Rb6 {[%clk
0:06:02][%emt 0:01:26]} 36. Raxb2 {[%clk 0:00:38][%emt 0:00:27]} 36... axb2
{[%clk 0:06:21][%emt 0:00:11]} 37. Qb1 {[%clk 0:01:06][%emt 0:00:02]} 37...
Ba3 {[%clk 0:05:31][%emt 0:01:20]} 38. g3 {[%clk 0:00:36][%emt 0:01:01]} 38...
Bxe2 {[%clk 0:05:41][%emt 0:00:20]} 39. Kxe2 {[%clk 0:00:35][%emt 0:00:31]}
39... Qxc3 {[%clk 0:05:39][%emt 0:00:32]} 40. Rc2 {[%clk 0:00:54][%emt
0:00:10]} 40... Qxd4 {[%clk 0:05:52][%emt 0:00:17]} 41. Rc8+ {[%clk
0:00:34][%emt 0:00:50]} 41... Bf8 {[%clk 0:06:18][%emt 0:00:05]} 0-1

[White "FIORIO, Thomas"]
[Black "SCHVED, Nina"]
[WhiteElo "1822"]
[BlackElo "1565"]
[Result "1-0"]
[Date "2026.03.04"]

[Event "Chpt Reg Jeunes Occitanie 2026 - Espalion"]
[Site "Espalion, France"]
[Round "1.10"]
[ECO "?"]
[Annotator "?"]
[TimeControl "1h30 + 30sec/cp"]

1. e4 {[%clk 1:30:56][%emt 0:00:02]} 1... e5 {[%clk 1:30:52][%emt 0:00:08]} 2.
Nf3 {[%clk 1:30:56][%emt 0:00:30]} 2... Nf6 {[%clk 1:31:12][%emt 0:00:10]} 3.
Nxe5 {[%clk 1:31:02][%emt 0:00:24]} 3... d6 {[%clk 1:31:27][%emt 0:00:16]} 4.
Nf3 {[%clk 1:31:24][%emt 0:00:08]} 4... Nxe4 {[%clk 1:31:49][%emt 0:00:08]} 5.
d4 {[%clk 1:31:06][%emt 0:00:47]} 5... d5 {[%clk 1:31:44][%emt 0:00:36]} 6.
Bf4 {[%clk 1:29:39][%emt 0:01:56]} 6... Nc6 {[%clk 1:30:32][%emt 0:01:43]} 7.
c3 {[%clk 1:28:20][%emt 0:01:49]} 7... Bg4 {[%clk 1:28:56][%emt 0:02:06]} 8.
Be2 {[%clk 1:27:47][%emt 0:01:02]} 8... Be7 {[%clk 1:27:46][%emt 0:01:41]} 9.
Nbd2 {[%clk 1:26:34][%emt 0:01:43]} 9... Nxd2 {[%clk 1:22:40][%emt 0:05:37]}
10. Qxd2 {[%clk 1:24:49][%emt 0:02:13]} 10... Qd7 {[%clk 1:20:18][%emt
0:02:53]} 11. h3 {[%clk 1:21:59][%emt 0:03:19]} 11... Bh5 {[%clk 1:20:05][%emt
0:00:45]} 12. Ne5 {[%clk 1:13:53][%emt 0:08:35]} 12... Nxe5 {[%clk
1:18:05][%emt 0:02:28]} 13. Bxh5 {[%clk 1:12:13][%emt 0:02:11]} 13... Ng6
{[%clk 1:17:23][%emt 0:01:12]} 14. Bg3 {[%clk 1:04:12][%emt 0:08:31]} 14...
Qe6+ {[%clk 1:14:38][%emt 0:03:17]} 15. Qe2 {[%clk 0:56:53][%emt 0:07:48]}
15... Qxe2+ {[%clk 1:12:56][%emt 0:02:13]} 16. Bxe2 {[%clk 0:57:12][%emt
0:00:10]} 16... O-O-O {[%clk 1:12:54][%emt 0:00:32]} 17. Bg4+ {[%clk
0:55:21][%emt 0:02:22]} 17... Kb8 {[%clk 1:12:35][%emt 0:00:49]} 18. O-O-O
{[%clk 0:53:34][%emt 0:02:16]} 18... Bg5+ {[%clk 1:10:33][%emt 0:02:32]} 19.
Kc2 {[%clk 0:52:55][%emt 0:01:09]} 19... Nf4 {[%clk 1:09:49][%emt 0:01:14]}
20. Bf3 {[%clk 0:52:33][%emt 0:00:51]} 20... h5 {[%clk 1:06:22][%emt 0:03:59]}
21. h4 {[%clk 0:49:38][%emt 0:03:23]} 21... Bh6 {[%clk 1:05:36][%emt 0:01:16]}
22. Rhe1 {[%clk 0:48:32][%emt 0:01:35]} 22... Ng6 {[%clk 1:03:20][%emt
0:02:48]} 23. Bxh5 {[%clk 0:45:08][%emt 0:03:53]} 23... Bf4 {[%clk
0:59:20][%emt 0:04:29]} 24. Bxg6 {[%clk 0:44:25][%emt 0:01:15]} 24... Bxg3
{[%clk 0:55:43][%emt 0:04:07]} 25. fxg3 {[%clk 0:44:40][%emt 0:00:14]} 25...
fxg6 {[%clk 0:55:22][%emt 0:00:52]} 26. Re7 {[%clk 0:44:47][%emt 0:00:21]}
26... Rhg8 {[%clk 0:50:54][%emt 0:04:59]} 27. Rde1 {[%clk 0:43:44][%emt
0:01:32]} 27... Kc8 {[%clk 0:48:12][%emt 0:03:13]} 28. R1e6 {[%clk
0:42:53][%emt 0:01:21]} 28... Rd6 {[%clk 0:45:55][%emt 0:02:48]} 29. Rxd6
{[%clk 0:42:46][%emt 0:00:35]} 29... cxd6 {[%clk 0:46:10][%emt 0:00:16]} 30.
Re6 {[%clk 0:42:58][%emt 0:00:16]} 30... Kc7 {[%clk 0:45:03][%emt 0:01:39]}
31. Rxg6 {[%clk 0:43:15][%emt 0:00:13]} 31... Kc6 {[%clk 0:44:41][%emt
0:00:52]} 32. h5 {[%clk 0:43:10][%emt 0:00:35]} 1-0

[White "MORALES, Maxime"]
[Black "HUDE, Hugo"]
[WhiteElo "1932"]
[BlackElo "1697"]
[Result "1-0"]
[Date "2026.03.04"]